[Event "81st Georgian Women-ch 2024"]
[Site "Tbilisi"]
[Date "2024.02.15"]
[Round "6.5"]
[White "Khotenashvili, Bella"]
[Black "Batsiashvili, Nino"]
[Result "1/2-1/2"]
[ECO "E11"]
[WhiteElo "2467"]
[BlackElo "2451"]
[Annotator "TA"]
[PlyCount "134"]
[EventDate "2024.02.08"]
[EventType "tourn"]
[EventCountry "GEO"]
[SourceTitle "playchess.com"]
[Source "ChessBase"]
[SourceQuality "1"]
[TimeControl "40/5400+30:1800+30"]

{[%evp 58,134,247,244,266,268,333,299,369,358,340,350,384,401,407,402,375,138,545,320,297,125,133,126,129,98,146,92,91,97,83,81,89,84,110,0,75,75,68,62,69,8,8,8,64,54,60,0,0,0,0,0,0,0,8,8,8,8,8,0,8,0,25,24,137,8,8,8,362,197,291,0,0,0,0,0,0,0,0]} 1. d4 {[%emt 0:00:05]} Nf6 {[%emt 0:00:03]} 2. c4 {[%emt 0:00:08]} e6 {[%emt 0:00:03]} 3. Nf3 {[%emt 0:00:06]} Bb4+ {[%emt 0:00:05]} 4. Nbd2 {[%emt 0:00:20]} O-O {[%emt 0:00:09]} 5. a3 {[%emt 0:00:22]} Be7 {[%emt 0:00:08]} 6. e3 {[%emt 0:05:07]} d5 {[%emt 0:01:56]} 7. b4 {[%emt 0:13:11]} a5 {[%emt 0:00:22]} 8. b5 {[%emt 0:00:04]} c6 {[%emt 0:00:05]} 9. Rb1 {[%emt 0:09:44]} Bd7 {[%emt 0:08:31]} 10. Ne5 {[%emt 0:08:41]} dxc4 {[%emt 0:01:35]} 11. Bxc4 {[%emt 0:00:42]} Be8 {[%emt 0:12:13]} 12. O-O {[%emt 0:05:54]} Nd5 {[%emt 0:05:24]} 13. Qc2 {[%emt 0:09:43]} f6 {[%emt 0:04:15]} 14. Nd3 {[%emt 0:05:27]} cxb5 {[%emt 0:13:50]} 15. Bxb5 {[%emt 0:00:22]} Bg6 {[%emt 0:00:40]} 16. Bc4 {[%emt 0:04:06]} Ra7 {[%emt 0:03:35]} 17. e4 {[%emt 0:07:33]} Nc7 {[%emt 0:00:08]} 18. Nf4 {[%emt 0:02:53]} Bf7 {[%emt 0:01:01]} 19. Nf3 {[%emt 0:02:31]} g5 {[%emt 0:04:39]} 20. Ne2 {[%emt 0:00:45]} Bg6 {[%emt 0:03:25]} 21. Bd3 {[%emt 0:08:16]} Nd7 {[%emt 0:03:19]} 22. Be3 {[%emt 0:07:19]} b6 {[%emt 0:00:15]} 23. Qa2 {[%emt 0:01:57]} Qa8 {[%emt 0:01:57]} 24. Ng3 {[%emt 0:00:38]} Rd8 {[%emt 0:01:00]} 25. Rfc1 {[%emt 0:01:57]} Nf8 {[%emt 0:00:08]} 26. Rxb6 {[%emt 0:00:31]} Rb7 {[%emt 0:02:31]} 27. Rxb7 {[%emt 0:03:51]} Qxb7 {[%emt 0:00:01]} 28. Qc2 {[%emt 0:00:21]} Ne8 {[%emt 0:00:59]} 29. a4 {[%emt 0:00:19]} Bb4 {[%emt 0:01:14]} 30. h4 {[%emt 0:00:41]} g4 {[%emt 0:01:03]} 31. Nd2 {[%emt 0:00:27]} Nd6 {[%emt 0:02:49]} 32. Nb3 {[%emt 0:00:28]} Rc8 {[%emt 0:03:00]} 33. Nc5 {[%emt 0:00:01]} Qf7 {[%emt 0:00:33]} 34. Qd1 {[%emt 0:01:21]} h5 {[%emt 0:00:54]} 35. Na6 {[%emt 0:00:16]} Rxc1 {[%emt 0:02:30]} 36. Qxc1 {[%emt 0:00:01]} ({But not} 36. Bxc1 Qb7 37. Qc2 Be8 $18) 36... Qb7 {[%emt 0:00:30]} 37. Qc7 $2 {[%emt 0:02:09]} (37. Nxb4 $18 {and White stays clearly on top.} Qxb4 38. Qc5) 37... Be8 $2 {[%emt 0:01:03][%mdl 8192]} (37... Qxc7 $16 {is more resistant.} 38. Nxc7 Kf7) 38. Qxb7 {[%emt 0:00:22]} Nxb7 {[%emt 0:00:01]} 39. Bc2 {[%emt 0:00:12]} (39. Nxb4 $18 axb4 40. Bd2 Bxa4 41. Nxh5 (41. Bxb4 Be8 $18)) 39... Bd6 $16 {[%emt 0:01:43]} 40. Ne2 {[%emt 0:00:00]} Nd7 {[%emt 0:00:00]} 41. Bb3 {[%emt 0:04:27]} Kf7 {[%emt 0:07:46]} (41... Bf7 $142) 42. Bf4 {[%emt 0:10:14]} (42. f4 $142 {Strongly threatening e5.} gxf3 43. gxf3) 42... Ke7 $16 {[%emt 0:05:58]} 43. Nc7 {[%emt 0:02:20]} Bf7 {[%emt 0:01:04]} 44. Nb5 {[%emt 0:04:08]} Bb4 {[%emt 0:04:10]} 45. Na7 {[%emt 0:03:41]} Nb6 {[%emt 0:03:46]} 46. Nb5 {[%emt 0:04:01]} (46. Nc6+ $16 Kd7 47. Nxb4 axb4 48. Bd2) 46... Be8 {[%emt 0:01:46]} (46... Nd7 $11) 47. Nec3 $16 {[%emt 0:02:52]} Nd6 {[%emt 0:03:57]} 48. Nxd6 {[%emt 0:01:34]} Bxd6 {[%emt 0:00:01]} 49. e5 {[%emt 0:01:08]} (49. Be3 $14) 49... Bb4 $11 {[%emt 0:00:45]} 50. exf6+ {[%emt 0:00:21]} Kxf6 {[%emt 0:00:02]} (50... Kf7 $1 $11 51. Nb5 Bxb5 52. axb5 a4) 51. Bg5+ {[%emt 0:00:58]} Kf7 {[%emt 0:00:55]} 52. Nb5 {[%emt 0:00:28]} (52. Bd8 $1 $14) 52... Bxb5 $11 {[%emt 0:01:24]} 53. axb5 {[%emt 0:00:01]} a4 {[%emt 0:00:04]} 54. Ba2 {[%emt 0:01:01]} Nd5 {[%emt 0:02:03]} 55. g3 {[%emt 0:00:56]} Ke8 {[%emt 0:01:17]} 56. f3 {[%emt 0:00:44]} Bc3 {[%emt 0:02:06]} 57. fxg4 {[%emt 0:00:10]} Bxd4+ {[%emt 0:00:01]} 58. Kg2 {[%emt 0:00:58]} hxg4 {[%emt 0:00:06]} 59. Bc1 {[%emt 0:00:24]} Kd7 {[%emt 0:02:38]} 60. h5 {[%emt 0:00:33]} Kd6 {[%emt 0:00:21]} (60... Ne3+ $11 {remains equal.} 61. Kh1 Ke7) 61. Ba3+ {[%emt 0:00:11]} (61. h6 $16) 61... Ke5 $1 $11 {[%emt 0:03:43]} 62. h6 {[%emt 0:00:39]} Ne3+ $2 {[%emt 0:01:20][%mdl 8192]} (62... Kf6 $1 $11) 63. Kh2 {[%emt 0:00:09]} (63. Kh1 $142 Kf6 64. Bf8) 63... Kf6 {[%emt 0:00:31] [#]} (63... Nf1+ $142 64. Kh1 Kf6 (64... Nxg3+ $2 {too greedy.} 65. Kg2 $18)) 64. Bb1 $2 {[%emt 0:00:43]} ({Only move:} 64. Bf8 $1 $18 {[%cal Rf8g7] Bg7+ is the strong threat.} Nf1+ 65. Kg2 Ne3+ 66. Kh1) 64... Nf1+ $11 {[%emt 0:00:50]} 65. Kg2 {[%emt 0:00:02]} Ne3+ {[%emt 0:00:04]} 66. Kh2 {[%emt 0:00:31]} Nf1+ {[%emt 0:00:04]} 67. Kg2 {[%emt 0:00:03]} Ne3+ {[%emt 0:00:01]} 1/2-1/2

[Event "81st Georgian Women-ch 2024"]
[Site "Tbilisi"]
[Date "2024.02.16"]
[Round "7.1"]
[White "Batsiashvili, Nino"]
[Black "Melia, Salome"]
[Result "1-0"]
[ECO "E21"]
[WhiteElo "2451"]
[BlackElo "2355"]
[Annotator "TA"]
[PlyCount "120"]
[EventDate "2024.02.08"]
[EventType "tourn"]
[EventCountry "GEO"]
[SourceTitle "playchess.com"]
[Source "ChessBase"]
[SourceQuality "1"]
[TimeControl "40/5400+30:1800+30"]

{[%evp 30,120,50,64,54,58,65,37,90,56,77,56,56,62,56,62,67,31,39,45,41,38,54,54,53,53,53,62,86,82,85,70,69,68,73,66,66,66,116,112,102,105,115,113,102,95,84,84,131,125,339,391,404,390,593,588,902,850,997,920,1010,1011,1051,1013,1418,1327,1348,922,1095,1127,1167,1107,935,891,1630,1563,1655,1466,1675,1470,2129,2006,2052,1781,29981,29982,29982,29983,29983,29984,29984,29985,29981]} 1. d4 {[%emt 0:00:01]} Nf6 {[%emt 0:00:02]} 2. c4 {[%emt 0:00:06]} e6 {[%emt 0:00:04]} 3. Nc3 {[%emt 0:00:03]} Bb4 {[%emt 0:00:21]} 4. Nf3 {[%emt 0:01:25]} b6 {[%emt 0:00:49]} 5. Bd2 {[%emt 0:02:42]} Bb7 {[%emt 0:01:02]} 6. Rc1 {[%emt 0:00:29] E21: Nimzo-Indian: 4 Nf3.} O-O {[%emt 0:01:36]} 7. e3 {[%emt 0:06:30]} Re8 {[%emt 0:04:05]} 8. Bd3 {[%emt 0:00:45]} c5 {[%emt 0:08:11]} 9. O-O {[%emt 0:07:59]} cxd4 {[%emt 0:06:03]} 10. exd4 {[%emt 0:00:19]} Bf8 {[%emt 0:04:18]} 11. Re1 {[%emt 0:09:49]} d6 {[%emt 0:01:05]} 12. Bf4 {[%emt 0:02:52]} a6 {[%emt 0:03:39]} 13. Ng5 $146 {[%emt 0:07:57]} ({Predecessor:} 13. Bb1 Nbd7 14. Qd3 Rc8 15. Ng5 g6 16. Qh3 Rxc4 17. Rcd1 b5 18. Be4 d5 19. Bb1 {0-1 Unuk,L (2234)-Berger,S (2435) PRO League Stage rapid 2019 (2)}) 13... h6 {[%emt 0:05:48]} 14. Nge4 {[%emt 0:01:30]} Nxe4 {[%emt 0:00:50]} 15. Nxe4 {[%emt 0:05:15]} e5 {[%emt 0:12:24]} 16. Bd2 {[%emt 0:00:15]} Nc6 {[%emt 0:05:04]} 17. d5 {[%emt 0:00:40]} Nd4 {[%emt 0:01:08]} 18. Bc3 {[%emt 0:03:58]} Nf5 {[%emt 0:13:20]} (18... g6 $14) 19. g3 {[%emt 0:02:59]} Nd4 {[%emt 0:04:28]} 20. Nd2 {[%emt 0:05:22]} g6 {[%emt 0:08:11]} 21. Bxd4 {[%emt 0:11:05]} exd4 {[%emt 0:00:02]} 22. Rxe8 {[%emt 0:00:06]} Qxe8 {[%emt 0:00:09]} 23. Qg4 {[%emt 0:00:45]} Bg7 {[%emt 0:02:54]} 24. Nf3 {[%emt 0:00:04]} Qd8 {[%emt 0:10:15]} 25. Nxd4 {[%emt 0:04:44]} Qg5 {[%emt 0:04:05]} 26. Qxg5 {[%emt 0:00:25]} hxg5 {[%emt 0:00:02]} 27. Nc6 {[%emt 0:05:33]} Bxc6 {[%emt 0:01:47]} 28. dxc6 {[%emt 0:00:01]} Rc8 {[%emt 0:00:42]} 29. Be4 {[%emt 0:00:51]} Bxb2 {[%emt 0:00:06]} 30. Rc2 {[%emt 0:01:22]} Bd4 {[%emt 0:00:32]} 31. Bd5 {[%emt 0:00:43]} Re8 {[%emt 0:01:38]} 32. h3 {[%emt 0:00:55]} (32. c7 Rc8 $11) 32... Kg7 {[%emt 0:01:12]} 33. Kf1 {[%emt 0:01:34]} (33. c7 Rc8 $11) 33... Kf8 {[%emt 0:00:34] [#]} (33... Bf6 $1 $14) 34. Re2 $1 $16 {[%emt 0:01:22]} Rc8 {[%emt 0:00:19]} 35. Kg2 {[%emt 0:00:41]} Be5 {[%emt 0:00:32]} 36. Re3 {[%emt 0:02:23]} Rc7 {[%emt 0:00:30]} 37. Kf3 {[%emt 0:01:03]} Bd4 {[%emt 0:00:20]} 38. Re2 {[%emt 0:01:08]} Be5 {[%emt 0:00:43]} (38... Bf6 $142) 39. Kg4 $16 {[%emt 0:00:19]} f5+ $2 {[%emt 0:00:31]} (39... Bf6 $16 40. f4 gxf4) 40. Kxg5 $18 {[%emt 0:00:00]} Kg7 {[%emt 0:00:00]} 41. g4 {[%emt 0:07:06]} f4 {[%emt 0:16:40]} (41... Bf6+ $142 42. Kf4 fxg4 43. hxg4 g5+ 44. Kf5 b5 45. cxb5 (45. Re8 Bb2 $18) 45... axb5) 42. Rxe5 $18 {[%emt 0:07:42]} dxe5 {[%emt 0:00:25]} 43. h4 {[%emt 0:00:01]} Re7 {[%emt 0:13:58]} 44. h5 {[%emt 0:00:07]} e4 {[%emt 0:00:12]} 45. Kxf4 {[%emt 0:00:29]} gxh5 {[%emt 0:00:47]} 46. gxh5 {[%emt 0:00:06]} (46. Bxe4 hxg4 47. Bf5 Rc7 $11) 46... Kf6 {[%emt 0:01:32]} 47. Bxe4 {[%emt 0:00:34]} Re5 {[%emt 0:00:20]} 48. Bd5 {[%emt 0:01:58]} Rf5+ {[%emt 0:00:41]} 49. Ke4 {[%emt 0:00:14]} Re5+ {[%emt 0:00:26]} 50. Kd4 {[%emt 0:00:32]} Re7 {[%emt 0:00:29]} 51. Be4 {[%emt 0:02:17]} Ke6 {[%emt 0:00:34]} 52. h6 {[%emt 0:00:06]} Kd6 {[%emt 0:00:04]} 53. h7 {[%emt 0:00:04]} Re8 {[%emt 0:00:03]} 54. a4 {[%emt 0:00:21]} Rh8 {[%emt 0:00:19]} 55. f4 {[%emt 0:00:22]} Rf8 {[%emt 0:01:15]} 56. Ke3 {[%emt 0:02:00]} Kc5 {[%emt 0:00:38]} 57. Bd5 {[%emt 0:02:07]} Re8+ {[%emt 0:00:42]} 58. Kf3 {[%emt 0:00:11]} Rh8 {[%emt 0:00:17]} 59. c7 {[%emt 0:00:08]} Kd6 {[%emt 0:00:15]} 60. c8=Q {[%emt 0:00:18]} Rxc8 {[%emt 0:00:49]} 1-0

[Event "81st Georgian Women-ch 2024"]
[Site "Tbilisi"]
[Date "2024.02.16"]
[Round "7.2"]
[White "Tsetskhladze, Mariam"]
[Black "Khotenashvili, Bella"]
[Result "1/2-1/2"]
[ECO "B13"]
[WhiteElo "1912"]
[BlackElo "2467"]
[Annotator "TA"]
[PlyCount "84"]
[EventDate "2024.02.08"]
[EventType "tourn"]
[EventCountry "GEO"]
[SourceTitle "playchess.com"]
[Source "ChessBase"]
[SourceQuality "1"]
[TimeControl "40/5400+30:1800+30"]

{[%evp 10,84,24,21,41,42,35,33,37,4,0,0,0,-46,-3,-18,-18,-16,-9,-10,-15,-41,0,5,0,0,0,0,9,-5,27,25,14,19,4,0,0,0,0,0,0,-11,16,-18,-10,-12,-8,-8,-9,-17,-9,-16,-13,-20,34,0,0,0,0,0,0,0,0,0,0,0,0,0,0,0,0,0,0,0,0,0,0]} 1. e4 {[%emt 0:00:23]} c6 {[%emt 0:00:11]} 2. d4 {[%emt 0:04:05]} d5 {[%emt 0:00:06]} 3. exd5 {[%emt 0:00:33]} cxd5 {[%emt 0:00:04]} 4. Bd3 {[%emt 0:00:11]} Nc6 {[%emt 0:00:06]} 5. c3 {[%emt 0:00:07]} Qc7 {[%emt 0:00:07]} 6. h3 {[%emt 0:00:21]} e6 {[%emt 0:00:11]} 7. Nf3 {[%emt 0:04:38]} Bd6 {[%emt 0:00:12]} 8. O-O {[%emt 0:03:05]} Nge7 {[%emt 0:00:04] White is slightly better.} 9. Qc2 {[%emt 0:04:07]} Bd7 {[%emt 0:00:30]} 10. b4 {[%emt 0:15:01]} Rc8 {[%emt 0:03:40][%cal Oc6b4]} 11. Qd1 {[%emt 0:05:38]} (11. Na3 $11) 11... Ng6 {[%emt 0:19:19]} (11... O-O $5) 12. a4 {[%emt 0:09:51]} Nce7 {[%emt 0:06:29]} 13. Re1 {[%emt 0:08:29]} O-O {[%emt 0:01:02]} 14. Bd2 {[%emt 0:16:44]} Bf4 {[%emt 0:14:18]} 15. Ne5 {[%emt 0:08:13]} f6 {[%emt 0:14:52]} (15... Bxe5 $15 {feels stronger.} 16. dxe5 Nxe5) 16. Nxd7 $11 {[%emt 0:05:31]} Qxd7 {[%emt 0:02:42]} 17. Bxf4 {[%emt 0:00:27]} Nxf4 {[%emt 0:00:03]} 18. Bf1 {[%emt 0:00:43]} Nfg6 {[%emt 0:04:00]} 19. Qg4 {[%emt 0:02:21]} f5 {[%emt 0:05:24]} 20. Qe2 {[%emt 0:01:30]} Rf6 {[%emt 0:00:08]} 21. Qb5 {[%emt 0:06:41]} Qc7 {[%emt 0:01:12]} 22. Nd2 {[%emt 0:01:18]} a6 {[%emt 0:04:16]} 23. Qd3 {[%emt 0:01:08]} ({Don't play} 23. Qc5 Qf4 24. Qb6 Qxd2 $17) 23... Qxc3 {[%emt 0:01:46]} 24. Qxc3 {[%emt 0:00:48]} Rxc3 {[%emt 0:00:02]} 25. Nf3 {[%emt 0:00:14]} h6 {[%emt 0:08:32]} 26. a5 {[%emt 0:00:47]} Rb3 {[%emt 0:06:32][%cal Oe7c8]} 27. Rab1 {[%emt 0:00:24]} Rxb1 {[%emt 0:00:54]} 28. Rxb1 {[%emt 0:00:01]} Nc6 {[%emt 0:00:21]} 29. b5 {[%emt 0:00:25]} axb5 {[%emt 0:00:41]} 30. Rxb5 {[%emt 0:00:09]} Rf7 {[%emt 0:00:05]} 31. Rc5 {[%emt 0:01:32]} Nce7 {[%emt 0:05:37]} (31... Re7 $11) 32. Bb5 {[%emt 0:00:29]} Rf8 $1 {[%emt 0:00:26] The position is equal.} 33. Rc7 {[%emt 0:00:30][%cal Oh3h4] [#] And now h4! would win.} Ra8 {[%emt 0:02:13]} 34. Bd7 {[%emt 0:00:30]} Kf7 {[%emt 0:00:20]} (34... Rxa5 35. Bxe6+ Kh7 36. g3 $16 (36. Rxb7 Ra1+ 37. Kh2 Ra2 $11)) 35. Rxb7 {[%emt 0:00:16] Black must now prevent Rb6.} Rxa5 {[%emt 0:00:13]} 36. Rb6 {[%emt 0:00:34]} Ra1+ {[%emt 0:01:03]} 37. Kh2 {[%emt 0:00:01]} Nf8 {[%emt 0:00:17]} 38. Bxe6+ {[%emt 0:01:01]} Nxe6 {[%emt 0:00:02]} 39. Ne5+ {[%emt 0:00:04]} Kf6 {[%emt 0:00:39] [#] ...f4 is the strong threat.} 40. Nd7+ {[%emt 0:00:00]} Kf7 {[%emt 0:00:00]} 41. Ne5+ {[%emt 0:00:17]} Kf6 {[%emt 0:14:51] Threatens to win with ...f4.} 42. Nd7+ {[%emt 0:00:05]} Kf7 {[%emt 0:18:00] Weighted Error Value: White=0.06 (flawless) /Black=0.09 (flawless) .  Mistake:       	White=1     	Black=2      Inaccurate:     	White=4     	Black=3      OK:         	White=15    	Black=19     Best:        	White=5     	Black=2      Strong:       	---       	Black=1} 1/2-1/2

[Event "81st Georgian Women-ch 2024"]
[Site "Tbilisi"]
[Date "2024.02.16"]
[Round "7.3"]
[White "Kirtadze, Anastasia"]
[Black "Donghvani, Nia"]
[Result "1/2-1/2"]
[ECO "B90"]
[WhiteElo "1981"]
[BlackElo "2036"]
[Annotator "NA COMBH"]
[PlyCount "98"]
[EventDate "2024.02.08"]
[EventType "tourn"]
[EventCountry "GEO"]
[SourceTitle "playchess.com"]
[Source "ChessBase"]
[SourceQuality "1"]
[TimeControl "40/5400+30:1800+30"]

1. e4 {[%emt 0:00:06]} c5 {[%emt 0:00:52]} 2. Nf3 {[%emt 0:00:35]} d6 {[%emt 0:00:44]} 3. d4 {[%emt 0:00:09]} cxd4 {[%emt 0:00:04]} 4. Nxd4 {[%emt 0:00:03]} Nf6 {[%emt 0:00:03]} 5. Nc3 {[%emt 0:00:06]} a6 {[%emt 0:00:04]} 6. Nb3 {[%emt 0:00:43]} Nbd7 {[%emt 0:05:13]} 7. Be3 {[%emt 0:02:12]} b5 {[%emt 0:17:37]} 8. a4 {[%emt 0:01:20]} b4 {[%emt 0:00:04]} 9. Nd5 {[%emt 0:00:03]} Bb7 {[%emt 0:05:40]} 10. Nxf6+ {[%emt 0:16:30]} gxf6 {[%emt 0:01:17]} 11. f3 {[%emt 0:02:31]} Qc7 {[%emt 0:05:30]} 12. Qd2 {[%emt 0:04:20]} e6 {[%emt 0:01:58]} 13. Bd3 {[%emt 0:09:27]} d5 {[%emt 0:06:00]} 14. exd5 {[%emt 0:05:17]} Bxd5 {[%emt 0:00:04]} 15. Be4 {[%emt 0:01:27]} Bxe4 {[%emt 0:07:02]} 16. fxe4 {[%emt 0:00:11]} Ne5 {[%emt 0:06:11]} 17. O-O-O {[%emt 0:10:20]} Nc4 {[%emt 0:00:58]} 18. Qf2 {[%emt 0:05:42]} Nxe3 {[%emt 0:01:12]} 19. Qxe3 {[%emt 0:00:06]} Rc8 {[%emt 0:01:15]} 20. Qd3 {[%emt 0:06:29]} Bh6+ {[%emt 0:07:32]} 21. Kb1 {[%emt 0:00:24]} O-O {[%emt 0:00:06]} 22. Qg3+ {[%emt 0:03:20]} Kh8 {[%emt 0:00:17]} 23. Qxc7 {[%emt 0:01:00]} Rxc7 {[%emt 0:00:01]} 24. Rhf1 {[%emt 0:02:11]} Kg7 {[%emt 0:01:16]} 25. Rd6 {[%emt 0:07:03]} Rfc8 {[%emt 0:09:13]} 26. Rf2 {[%emt 0:03:14]} Rc6 {[%emt 0:01:00]} 27. Rd3 {[%emt 0:02:29]} Bg5 {[%emt 0:02:18]} 28. g3 {[%emt 0:04:19]} h5 {[%emt 0:07:38]} 29. h4 {[%emt 0:05:48]} Bh6 {[%emt 0:00:04]} 30. Na5 {[%emt 0:00:31]} R6c7 {[%emt 0:10:29]} 31. Nb3 {[%emt 0:05:53]} Rc4 {[%emt 0:01:32]} 32. Re2 {[%emt 0:00:41]} Kf8 {[%emt 0:01:12]} 33. Na5 {[%emt 0:01:33]} R4c5 {[%emt 0:01:02]} 34. Nb7 {[%emt 0:00:33]} Re5 {[%emt 0:01:19]} 35. Nd6 {[%emt 0:00:13]} Rc6 {[%emt 0:00:12]} 36. b3 {[%emt 0:01:02]} Ke7 {[%emt 0:00:49]} 37. Nc4 {[%emt 0:00:17]} Rec5 {[%emt 0:00:10]} 38. Re1 {[%emt 0:00:44]} f5 {[%emt 0:00:18]} 39. e5 {[%emt 0:00:33]} f6 {[%emt 0:00:33]} 40. exf6+ {[%emt 0:00:00]} Kxf6 {[%emt 0:00:00]} 41. Red1 {[%emt 0:03:52]} f4 {[%emt 0:14:25]} 42. gxf4 {[%emt 0:13:43]} Bxf4 {[%emt 0:00:04]} 43. c3 {[%emt 0:00:28]} bxc3 {[%emt 0:04:40]} 44. Rxc3 {[%emt 0:00:14]} Rd5 {[%emt 0:05:07]} 45. Rf1 {[%emt 0:05:37]} Rd4 {[%emt 0:00:06]} 46. Kc2 {[%emt 0:01:56]} e5 {[%emt 0:01:54]} 47. a5 {[%emt 0:03:55]} Rc7 {[%emt 0:04:08]} 48. Rf2 {[%emt 0:01:38]} Rc5 {[%emt 0:02:16]} 49. Rf1 {[%emt 0:01:06]} Rdd5 {[%emt 0:03:31]} 1/2-1/2

[Event "81st Georgian Women-ch 2024"]
[Site "Tbilisi"]
[Date "2024.02.16"]
[Round "7.4"]
[White "Lomaia, Diana"]
[Black "Mgeladze, Kesaria"]
[Result "1/2-1/2"]
[ECO "D72"]
[WhiteElo "2037"]
[BlackElo "2038"]
[Annotator "NA COMBH"]
[PlyCount "95"]
[EventDate "2024.02.08"]
[EventType "tourn"]
[EventCountry "GEO"]
[SourceTitle "playchess.com"]
[Source "ChessBase"]
[SourceQuality "1"]
[TimeControl "40/5400+30:1800+30"]

1. d4 {[%emt 0:00:02]} Nf6 {[%emt 0:00:05]} 2. c4 {[%emt 0:00:13]} g6 {[%emt 0:00:04]} 3. g3 {[%emt 0:00:19]} Bg7 {[%emt 0:00:10]} 4. Bg2 {[%emt 0:00:10]} d5 {[%emt 0:00:09]} 5. cxd5 {[%emt 0:01:05]} Nxd5 {[%emt 0:00:05]} 6. e4 {[%emt 0:01:31]} Nb6 {[%emt 0:00:13]} 7. d5 {[%emt 0:03:20]} c6 {[%emt 0:06:47]} 8. Nc3 {[%emt 0:05:31]} O-O {[%emt 0:11:21]} 9. Nge2 {[%emt 0:01:47]} cxd5 {[%emt 0:00:16]} 10. exd5 {[%emt 0:02:10]} Na6 {[%emt 0:05:02]} 11. O-O {[%emt 0:03:08]} Nc4 {[%emt 0:02:49]} 12. b3 {[%emt 0:10:19]} Ne5 {[%emt 0:05:42]} 13. Be3 {[%emt 0:16:46]} h5 {[%emt 0:19:16]} 14. h3 {[%emt 0:04:43]} Nc7 {[%emt 0:07:07]} 15. Nd4 {[%emt 0:06:19]} Nd7 {[%emt 0:03:53]} 16. Rc1 {[%emt 0:02:50]} Nf6 {[%emt 0:01:14]} 17. Qf3 {[%emt 0:02:15]} Nfe8 {[%emt 0:03:56]} 18. Rfd1 {[%emt 0:01:49]} Nd6 {[%emt 0:00:06]} 19. Bf4 {[%emt 0:06:25]} Bd7 {[%emt 0:05:00]} 20. Ne4 {[%emt 0:02:51]} Ncb5 {[%emt 0:01:12]} 21. Nxb5 {[%emt 0:02:26]} Bxb5 {[%emt 0:00:10]} 22. a4 {[%emt 0:01:37]} Be8 {[%emt 0:02:46]} 23. Nxd6 {[%emt 0:01:26]} exd6 {[%emt 0:00:04]} 24. Qe3 {[%emt 0:00:51]} b5 {[%emt 0:03:06]} 25. a5 {[%emt 0:01:09]} Bd7 {[%emt 0:04:56]} 26. Bxd6 {[%emt 0:07:20]} Re8 {[%emt 0:00:05]} 27. Qd2 {[%emt 0:09:51]} Bxh3 {[%emt 0:01:38]} 28. Bc7 {[%emt 0:00:43]} Qd7 {[%emt 0:00:08]} 29. Bxh3 {[%emt 0:04:38]} Qxh3 {[%emt 0:00:05]} 30. Re1 {[%emt 0:00:15]} h4 {[%emt 0:02:33]} 31. Qf4 {[%emt 0:00:30]} hxg3 {[%emt 0:00:25]} 32. Qxg3 {[%emt 0:00:36]} Qf5 {[%emt 0:05:14]} 33. d6 {[%emt 0:00:32]} Bh6 {[%emt 0:01:02]} 34. Rcd1 {[%emt 0:00:41]} Rxe1+ {[%emt 0:04:05]} 35. Rxe1 {[%emt 0:00:02]} Bf8 {[%emt 0:03:46]} 36. Rd1 {[%emt 0:01:24]} Qd7 {[%emt 0:00:47]} 37. Rd3 {[%emt 0:00:42]} Re8 {[%emt 0:00:54]} 38. Re3 {[%emt 0:00:39]} Rxe3 {[%emt 0:00:48]} 39. fxe3 {[%emt 0:00:16]} Qc6 {[%emt 0:00:55]} 40. Qf4 {[%emt 0:00:00]} Qc1+ {[%emt 0:00:00]} 41. Kg2 {[%emt 0:01:36]} Qd2+ {[%emt 0:01:45]} 42. Kh3 {[%emt 0:16:32]} Qd1 {[%emt 0:02:12]} 43. b4 {[%emt 0:05:20]} Qh1+ {[%emt 0:05:38]} 44. Kg3 {[%emt 0:03:39]} Qg1+ {[%emt 0:00:59]} 45. Kf3 {[%emt 0:01:00]} Qf1+ {[%emt 0:01:06]} 46. Kg3 {[%emt 0:00:25]} Qg1+ {[%emt 0:00:11]} 47. Kf3 {[%emt 0:00:15]} Qf1+ {[%emt 0:00:06]} 48. Ke4 {[%emt 0:06:32]} 1/2-1/2